bitfinex/quotes_BTCUSD_20241216
["timestamp","ask_amount","ask_price","bid_price","bid_amount"]
[1734307630591,0.00755153,104520.0,104510.0,0.156988]
[1734307630804,0.00755153,104520.0,104510.0,0.006988]
[1734307631222,0.023,104530.0,104510.0,0.006988]
[1734307631437,0.00819219,104520.0,104510.0,0.006988]
[1734307633365,0.00819219,104520.0,104510.0,0.00101169]
[1734307633518,0.00819219,104520.0,104510.0,0.00698837]
[1734307633954,0.00819219,104520.0,104510.0,0.00716113]
[1734307634159,0.00827859,104520.0,104510.0,0.2593105]
[1734307634388,0.00827859,104520.0,104510.0,0.23600442]
[1734307634718,8.64e-05,104520.0,104510.0,0.23600442]
[1734307634926,0.00549863,104520.0,104510.0,0.4212906]
[1734307635148,8.64e-05,104520.0,104510.0,0.59181228]
[1734307635353,8.64e-05,104520.0,104510.0,1.12791228]
[1734307635595,8.63e-05,104560.0,104540.0,0.15]
[1734307635811,8.63e-05,104560.0,104550.0,0.00095635]
[1734307636014,8.63e-05,104560.0,104550.0,0.00693299]
[1734307636220,8.63e-05,104560.0,104530.0,0.23971167]
[1734307636455,8.63e-05,104560.0,104540.0,0.00095635]
[1734307637095,8.63e-05,104560.0,104540.0,5.498e-05]
[1734307637309,8.63e-05,104560.0,104540.0,0.0241501]
[1734307637523,8.63e-05,104560.0,104540.0,0.02326724]
[1734307637940,8.63e-05,104560.0,104540.0,0.00101128]
[1734307638180,8.63e-05,104560.0,104540.0,5.498e-05]
[1734307638390,0.00071823,104550.0,104540.0,5.498e-05]
[1734307638644,0.12277226,104550.0,104540.0,5.498e-05]
[1734307638881,0.28746076,104550.0,104540.0,5.498e-05]
[1734307639122,0.20027226,104550.0,104540.0,5.498e-05]
[1734307639347,0.09977226,104550.0,104540.0,5.498e-05]
[1734307639769,0.10448636,104550.0,104540.0,5.498e-05]
[1734307644054,0.10448636,104550.0,104520.0,0.00722364]
[1734307644258,0.1045926,104550.0,104530.0,0.00047843]
[1734307644485,0.1045926,104550.0,104520.0,0.00047843]
[1734307645506,0.00553857,104550.0,104520.0,0.24953246]
[1734307645729,0.00553857,104550.0,104540.0,0.16870187]
[1734307646129,0.00553857,104550.0,104540.0,0.23854725]
[1734307646341,0.00553857,104550.0,104540.0,0.21730187]
[1734307646569,0.00562487,104550.0,104540.0,0.21730187]
[1734307647200,0.00562487,104550.0,104540.0,0.16870187]
[1734307647410,0.00562487,104550.0,104540.0,0.01870187]
[1734307648351,0.00562487,104550.0,104540.0,0.33631322]
[1734307649448,0.00562487,104550.0,104540.0,0.42939284]
[1734307649694,0.00562487,104550.0,104540.0,0.69634126]
[1734307649919,0.00562487,104550.0,104540.0,0.866241]
[1734307650123,0.00019254,104550.0,104540.0,1.01069375]
[1734307650343,0.00019254,104550.0,104540.0,1.18059349]
[1734307650554,0.00019254,104550.0,104540.0,1.84629349]
[1734307650756,0.00019254,104550.0,104540.0,1.9737183]
[1734307650976,0.00019254,104550.0,104540.0,1.84629349]
[1734307651403,0.00019254,104550.0,104540.0,2.05887409]
[1734307652035,0.00019254,104550.0,104540.0,2.05887319]
[1734307652243,0.00019254,104550.0,104540.0,1.84649851]
[1734307652453,0.00019254,104550.0,104540.0,1.84052567]
[1734307652652,0.00019254,104550.0,104540.0,1.87352713]
[1734307652862,8.63e-05,104610.0,104560.0,0.1]
[1734307652863,0.08507279,104610.0,104560.0,0.1]
[1734307653061,0.00917501,104600.0,104580.0,0.31163694]
[1734307653272,0.00917501,104600.0,104580.0,0.31760978]
[1734307654514,0.00917501,104600.0,104580.0,0.46496381]
[1734307654714,0.00917501,104600.0,104580.0,0.49579269]
[1734307655562,0.00064455,104610.0,104590.0,0.02551292]
[1734307655765,0.00064455,104610.0,104600.0,0.31163694]
[1734307655995,0.00064455,104610.0,104600.0,0.31760978]
[1734307656203,0.00064455,104610.0,104600.0,0.3431227]
[1734307656609,0.00064455,104610.0,104600.0,0.47300561]
[1734307657736,0.00064455,104610.0,104600.0,0.44217673]
[1734307658344,0.00064455,104610.0,104600.0,0.47300561]
[1734307658549,0.00064455,104610.0,104600.0,0.43620389]
[1734307659217,0.00064455,104610.0,104600.0,0.46703277]
[1734307661323,0.00064455,104610.0,104600.0,0.51443277]
[1734307661527,0.00064455,104610.0,104600.0,0.48360389]
[1734307662373,0.00064455,104610.0,104600.0,0.60658274]
[1734307662582,0.00064455,104610.0,104600.0,0.70563677]
[1734307662805,0.00989882,104610.0,104600.0,0.70563677]
[1734307663809,0.00064455,104610.0,104600.0,0.55563677]
[1734307664024,0.00989882,104610.0,104600.0,0.55563677]
[1734307664249,0.00989882,104610.0,104600.0,0.39399983]
[1734307664454,0.00989882,104610.0,104600.0,0.44919771]
[1734307665112,0.00989882,104610.0,104600.0,0.30274368]
[1734307665322,0.00989882,104610.0,104600.0,0.27723076]
[1734307665735,0.00989882,104610.0,104600.0,0.42723076]
[1734307667881,0.00989882,104610.0,104600.0,0.191204]
[1734307668292,0.00989882,104610.0,104600.0,0.27723076]
[1734307669233,0.00989882,104610.0,104600.0,0.42723076]
[1734307670736,0.10895285,104610.0,104600.0,0.15]
[1734307670948,0.30013885,104610.0,104600.0,0.15]
[1734307671165,0.0816,104600.0,104590.0,0.01884954]
[1734307671559,0.0909128,104600.0,104590.0,0.01884954]
[1734307672029,0.09210785,104600.0,104590.0,0.01884954]
[1734307672227,0.13720785,104600.0,104590.0,0.01884954]
[1734307672433,0.13720785,104600.0,104590.0,0.16884954]
[1734307672878,0.23626188,104600.0,104590.0,0.16884954]
[1734307673093,0.0909128,104600.0,104590.0,0.36007154]
[1734307674221,0.0093128,104600.0,104590.0,0.36007154]
[1734307674438,0.0093128,104600.0,104590.0,0.4460983]
[1734307675060,0.00961313,104600.0,104590.0,0.4460983]
[1734307675280,0.00961313,104600.0,104590.0,0.36007154]
[1734307675892,0.00961313,104600.0,104590.0,0.54515233]
[1734307676106,0.00961313,104600.0,104590.0,0.55099397]
[1734307676311,0.00961313,104600.0,104590.0,0.54515233]
[1734307676969,0.00961313,104600.0,104590.0,0.45912557]
[1734307677394,0.00961313,104600.0,104590.0,0.54515233]
[1734307678442,0.00961313,104600.0,104590.0,0.62035233]
[1734307679885,0.00961313,104600.0,104590.0,0.6295997]
[1734307681093,0.00064455,104610.0,104590.0,0.8208217]
[1734307681266,0.00569618,104600.0,104590.0,0.8209943]
[1734307681959,0.00064455,104610.0,104590.0,0.8209943]
[1734307682099,0.00064455,104610.0,104590.0,1.0122163]
[1734307682301,0.0057098,104600.0,104590.0,0.8209943]
[1734307683928,0.0057098,104600.0,104590.0,0.7457943]
[1734307684770,0.00064455,104610.0,104590.0,0.9370163]
[1734307684923,0.00064455,104610.0,104600.0,0.42723076]
[1734307685136,0.00064455,104610.0,104600.0,0.341204]
[1734307685336,0.00064455,104610.0,104600.0,0.13284308]
[1734307685554,0.00064455,104610.0,104600.0,0.32404708]
[1734307687425,0.07854455,104610.0,104600.0,0.32404708]
[1734307688080,0.07854455,104610.0,104590.0,0.40144814]
[1734307688290,0.00111,104600.0,104590.0,0.40144514]
[1734307689512,0.00111,104600.0,104590.0,0.55144514]
[1734307691182,0.00111,104600.0,104590.0,0.73808137]
[1734307691403,0.00111,104600.0,104590.0,0.7555246]
[1734307691614,0.00111,104600.0,104590.0,0.77046569]
[1734307692038,0.00111,104600.0,104590.0,0.73963681]
[1734307693280,0.00111,104600.0,104590.0,0.73652593]
[1734307694110,0.00111,104600.0,104590.0,0.65049917]
[1734307695009,0.00111,104600.0,104590.0,0.55144514]
[1734307699895,0.00570116,104600.0,104590.0,1.42414688]
[1734307700066,0.00570116,104600.0,104590.0,1.60264185]
[1734307700673,0.00570116,104600.0,104590.0,2.01888887]
[1734307700886,0.00570116,104600.0,104590.0,2.01843917]
[1734307701263,0.00570116,104600.0,104590.0,1.80612294]
[1734307701470,0.00570116,104600.0,104590.0,1.80401064]
[1734307701739,0.00570116,104600.0,104590.0,2.01820233]
[1734307701944,0.00570116,104600.0,104590.0,2.01714618]
[1734307702142,0.00570116,104600.0,104590.0,2.01925848]
[1734307702342,0.00570116,104600.0,104590.0,1.80612294]
[1734307702621,0.00570116,104600.0,104590.0,2.01926249]
[1734307702778,0.00570116,104600.0,104590.0,2.49729249]
[1734307703185,0.00570116,104600.0,104590.0,2.49518019]
[1734307703390,0.00570116,104600.0,104590.0,2.28204064]
[1734307703599,0.00570116,104600.0,104590.0,2.49515386]
[1734307704178,0.00578746,104600.0,104590.0,2.49515386]
[1734307704363,0.00578746,104600.0,104590.0,2.49726616]
[1734307704603,0.00578746,104600.0,104590.0,2.49515386]
[1734307704817,8.63e-05,104600.0,104590.0,2.49512149]
[1734307705013,0.0011963,104600.0,104590.0,2.49723379]
[1734307705135,8.63e-05,104600.0,104590.0,2.49512149]
[1734307705328,8.63e-05,104600.0,104590.0,2.28204064]
[1734307705849,0.00579931,104600.0,104590.0,2.28204064]
[1734307707011,0.0011103,104600.0,104590.0,2.28204064]
[1734307707216,8.62e-05,104620.0,104610.0,0.15]
[1734307707418,0.00772301,104620.0,104610.0,1.46198875]
[1734307707617,8.63e-05,104630.0,104620.0,0.05]
[1734307707817,0.00024408,104630.0,104620.0,1.37488511]
[1734307708014,0.00024408,104630.0,104620.0,1.68163521]
[1734307708220,0.00598328,104630.0,104620.0,1.68163521]
[1734307708420,0.00598328,104630.0,104620.0,1.87280321]
[1734307708620,8.2e-07,104630.0,104620.0,1.78588596]
[1734307708825,0.0159066,104640.0,104620.0,1.78588596]
[1734307708826,0.0159066,104640.0,104630.0,0.05]
[1734307709034,0.0159066,104640.0,104630.0,1.37451836]
[1734307709242,0.0159066,104640.0,104630.0,1.86339146]
[1734307709450,0.0159066,104640.0,104630.0,1.73571735]
[1734307709659,0.0159066,104640.0,104630.0,1.86331253]
[1734307709860,6e-07,104640.0,104630.0,1.91331253]
[1734307710068,6e-07,104640.0,104630.0,1.91330538]
[1734307710281,6e-07,104640.0,104630.0,1.59781444]
[1734307710491,6e-07,104640.0,104630.0,1.00314128]
[1734307710694,6e-07,104640.0,104630.0,0.91807303]
[1734307711515,6e-07,104640.0,104630.0,1.00409979]
[1734307712379,0.0757068,104650.0,104630.0,1.30035703]
[1734307712790,0.0757068,104650.0,104640.0,0.341131]
[1734307715581,0.0756862,104650.0,104640.0,0.341131]
[1734307716434,0.07688069,104650.0,104640.0,0.341131]
[1734307717680,0.17593472,104650.0,104640.0,0.341131]
[1734307717893,0.50217448,104650.0,104640.0,0.15]
[1734307718159,0.273631,104640.0,104630.0,0.47787]
[1734307718360,0.45871179,104640.0,104630.0,0.47787]
[1734307718595,0.50781179,104640.0,104630.0,0.47787]
[1734307719016,0.53081179,104640.0,104630.0,0.47787]
[1734307719664,0.44478503,104640.0,104630.0,0.47787]
[1734307720305,0.23065403,104640.0,104630.0,0.669019]
[1734307720507,0.1316,104640.0,104630.0,0.819019]
[1734307720739,0.0825,104640.0,104630.0,0.8249888]
[1734307722201,0.0825,104640.0,104630.0,0.6338398]
[1734307722202,0.18155403,104640.0,104630.0,0.6338398]
[1734307722433,0.37268503,104640.0,104630.0,0.47787]
[1734307722636,0.18155403,104640.0,104630.0,0.47787]
[1734307723488,0.18274869,104640.0,104630.0,0.669019]
[1734307723711,0.18274869,104640.0,104630.0,0.47787]
[1734307723921,0.41927969,104640.0,104630.0,0.47787]
[1734307724082,0.41808503,104640.0,104630.0,0.47787]
[1734307724895,0.1279,104640.0,104630.0,0.669019]
[1734307725273,0.12909461,104640.0,104630.0,0.669019]
[1734307725547,0.12909461,104640.0,104630.0,0.67498913]
[1734307725873,0.1279,104640.0,104630.0,0.67498913]
[1734307726028,0.0825,104640.0,104630.0,0.67498913]
[1734307726235,0.0825,104640.0,104630.0,0.48384013]
[1734307726637,0.0825,104640.0,104630.0,0.47787]
[1734307726838,0.0825,104640.0,104630.0,0.669019]
[1734307727223,0.0825,104640.0,104630.0,0.47787]
[1734307727447,0.0825,104640.0,104630.0,0.48401276]
[1734307728048,0.0825863,104640.0,104630.0,0.67516176]
[1734307730142,0.0825863,104640.0,104630.0,0.6691916]
[1734307730294,0.0825863,104640.0,104630.0,0.67516171]
[1734307732917,0.0825863,104640.0,104630.0,0.82516171]
[1734307733392,0.0825863,104640.0,104630.0,0.8251616]
[1734307734790,8.63e-05,104640.0,104630.0,0.8251616]
[1734307736043,8.63e-05,104640.0,104630.0,0.84416073]
[1734307736464,8.63e-05,104640.0,104630.0,0.94321476]
[1734307736868,8.63e-05,104640.0,104630.0,0.93724476]
[1734307737817,8.63e-05,104640.0,104630.0,0.94321356]
[1734307738123,8.63e-05,104640.0,104630.0,0.84415953]
[1734307739120,8.63e-05,104640.0,104630.0,1.02924032]
[1734307739526,8.63e-05,104640.0,104630.0,1.11474784]
[1734307739780,8.63e-05,104640.0,104630.0,0.94321356]
[1734307742793,8.63e-05,104640.0,104630.0,0.84415953]
[1734307742998,0.0772863,104640.0,104630.0,0.49704173]
[1734307743353,0.2684173,104640.0,104630.0,0.49704173]
[1734307744239,0.0772863,104640.0,104630.0,0.64704173]
[1734307745255,0.0772863,104640.0,104630.0,0.83819073]
[1734307745702,0.0772863,104640.0,104630.0,0.64704173]
[1734307746105,0.0772863,104640.0,104630.0,0.83819073]
[1734307747368,0.0772863,104640.0,104630.0,0.64704173]
[1734307747571,0.36866593,104640.0,104630.0,0.49704173]
[1734307747800,0.36747133,104640.0,104630.0,0.49704173]
[1734307748006,0.36747133,104640.0,104630.0,0.50301213]
[1734307748204,0.41497133,104640.0,104630.0,0.484013]
[1734307748604,0.41497133,104640.0,104630.0,0.4780426]
[1734307748840,0.41497133,104640.0,104630.0,0.4840131]
[1734307749509,0.66002485,104640.0,104630.0,0.4840131]
[1734307749775,0.393949,104630.0,104620.0,0.00015778]
[1734307749984,0.57902979,104630.0,104620.0,0.00612886]
[1734307750190,0.42000303,104630.0,104620.0,0.00015778]
[1734307750857,0.50602979,104630.0,104620.0,0.00015778]
[1734307751061,0.50602979,104630.0,104620.0,0.00612899]
[1734307751277,0.50602979,104630.0,104620.0,0.00015778]
[1734307753164,0.22885403,104630.0,104620.0,0.19132578]
[1734307753364,0.42000303,104630.0,104620.0,0.00015778]
[1734307756281,0.42935039,104630.0,104620.0,0.00015778]
[1734307759733,0.50235039,104630.0,104620.0,0.00015778]
[1734307759909,0.67384601,104630.0,104620.0,0.00015778]
[1734307760392,0.8020493,104630.0,104620.0,0.00015778]
[1734307760826,0.97298702,104630.0,104620.0,0.00015778]
[1734307761067,1.18665917,104630.0,104620.0,0.00015778]
[1734307761288,0.88751816,104630.0,104620.0,0.00015778]
[1734307761545,0.80244522,104630.0,104620.0,0.00015778]
[1734307761789,0.83244522,104630.0,104620.0,0.00033038]
[1734307762010,1.05369968,104630.0,104620.0,0.00033038]
[1734307762260,1.18214053,104630.0,104620.0,0.00033038]
[1734307762501,1.26776229,104630.0,104620.0,0.00033038]
[1734307762763,1.21776229,104630.0,104620.0,0.00033038]
[1734307763273,1.21774797,104630.0,104620.0,0.00033038]
[1734307763702,1.00367989,104630.0,104620.0,0.00033038]
[1734307764149,1.21774797,104630.0,104620.0,0.00033038]
[1734307764372,1.00367989,104630.0,104620.0,0.00033038]
[1734307765234,0.59495783,104630.0,104620.0,0.00033038]
[1734307765470,0.45935039,104630.0,104620.0,0.00033038]
[1734307765684,0.41185039,104630.0,104620.0,0.00033038]
[1734307768866,0.57087715,104630.0,104620.0,0.00033038]
[1734307769088,0.62087715,104630.0,104620.0,0.00033038]
[1734307769317,0.66757715,104630.0,104620.0,0.00033038]
[1734307769677,0.83149703,104630.0,104620.0,0.00033038]
[1734307769997,0.66757715,104630.0,104620.0,0.00033038]
[1734307770229,0.63757715,104630.0,104620.0,0.00033038]
[1734307770657,0.72314047,104630.0,104620.0,0.00033038]
[1734307771546,0.73163236,104630.0,104620.0,0.00033038]
[1734307771771,1.259449,104630.0,104620.0,0.00033038]
[1734307771991,1.289449,104630.0,104620.0,0.00033038]
[1734307772209,1.28940321,104630.0,104620.0,0.00033038]
[1734307772428,1.10261212,104630.0,104620.0,0.00033038]
[1734307773336,1.23088863,104630.0,104620.0,0.00033038]
[1734307774201,1.31638901,104630.0,104620.0,0.00033038]
[1734307774594,0.71757715,104630.0,104620.0,0.00033038]
[1734307774796,1.23072552,104630.0,104620.0,0.00033038]
[1734307775007,1.10246,104630.0,104620.0,0.00033038]
[1734307775273,1.20151403,104630.0,104620.0,0.00033038]
[1734307775883,1.10246,104630.0,104620.0,0.00033038]
[1734307776298,1.23073313,104630.0,104620.0,0.00033038]
[1734307777125,1.10246,104630.0,104620.0,0.00033038]
[1734307777336,1.18848676,104630.0,104620.0,0.00033038]
[1734307777549,0.93143931,104630.0,104620.0,0.00033038]
[1734307777979,0.41485419,104630.0,104620.0,0.00033038]
[1734307778207,2.75661734,104640.0,104630.0,0.1994]
[1734307778208,2.5000863,104640.0,104630.0,0.1994]
[1734307778420,2.5000863,104640.0,104630.0,0.390549]
[1734307778633,2.5000863,104640.0,104630.0,0.396521]
[1734307779082,2.5001863,104640.0,104630.0,0.396521]
[1734307781423,2.5000863,104640.0,104630.0,0.396521]
[1734307781880,2.5000863,104640.0,104630.0,0.39651847]
[1734307782291,2.5000863,104640.0,104630.0,0.390549]
[1734307782500,2.5000863,104640.0,104630.0,0.39651847]
[1734307783156,2.5000863,104640.0,104630.0,0.4152294]
[1734307785255,2.5000863,104640.0,104630.0,0.41522935]
[1734307787588,2.5000863,104640.0,104630.0,0.4151797]
[1734307788287,2.5000863,104640.0,104630.0,0.41517973]
[1734307792154,2.5000863,104640.0,104630.0,0.02468038]
[1734307792155,2.59914033,104640.0,104630.0,0.02468038]
[1734307792366,2.98141433,104640.0,104620.0,0.07529038]
[1734307792574,0.29139782,104630.0,104620.0,0.07529038]
[1734307792750,0.29020303,104630.0,104620.0,0.07529038]
[1734307794574,0.37622979,104630.0,104620.0,0.07529038]
[1734307796083,0.57392979,104630.0,104620.0,0.07529038]
[1734307797544,0.58139052,104630.0,104620.0,0.07529038]
[1734307800554,0.34766376,104630.0,104620.0,0.07529038]
[1734307800797,0.39766376,104630.0,104620.0,0.07529038]
[1734307802113,0.34766376,104630.0,104620.0,0.07529038]
[1734307802740,0.29766376,104630.0,104620.0,0.07529038]
[1734307805054,2.9323633,104640.0,104620.0,0.07529038]
[1734307805055,2.8823583,104640.0,104620.0,0.07529038]
[1734307805265,0.00119473,104630.0,104620.0,0.07529038]
[1734307805652,0.19234373,104630.0,104620.0,0.07529038]
[1734307806121,0.00119473,104630.0,104620.0,0.07529038]
[1734307806973,2.69854458,104640.0,104620.0,0.26645838]
[1734307807221,2.69854458,104640.0,104620.0,0.2724291]
[1734307807439,2.98873861,104640.0,104620.0,0.2724291]
[1734307808911,8.63e-05,104630.0,104610.0,0.46186669]
[1734307809122,0.00025107,104630.0,104610.0,0.46186669]
[1734307809333,0.00025107,104630.0,104620.0,0.191168]
[1734307810033,0.00025107,104630.0,104620.0,0.341168]
[1734307812595,0.00025107,104630.0,104620.0,0.15]
[1734307812806,0.19140007,104630.0,104610.0,0.42069869]
[1734307813022,0.57371507,104630.0,104610.0,0.22951669]
[1734307813238,0.37624879,104620.0,104610.0,0.01886039]
[1734307813451,0.382383,104610.0,104590.0,0.29137656]
[1734307814719,0.382383,104610.0,104600.0,0.15]
[1734307814924,0.382383,104610.0,104600.0,0.16907498]
[1734307815781,0.191186,104610.0,104600.0,0.16907498]
[1734307816172,0.19238097,104610.0,104600.0,0.16907498]
[1734307817239,0.37746176,104610.0,104600.0,0.01907498]
[1734307817447,0.37626679,104610.0,104600.0,0.01907498]
[1734307817672,0.191204,104600.0,104590.0,0.17276156]
[1734307817875,0.29145313,104600.0,104590.0,0.17276156]
[1734307818084,0.29025803,104600.0,104590.0,0.17276156]
[1734307818926,0.29025803,104600.0,104590.0,0.16878129]
[1734307819154,0.29025803,104600.0,104590.0,0.16660196]
[1734307819361,0.29025803,104600.0,104590.0,0.01660196]
[1734307819569,0.29025803,104600.0,104590.0,0.01927567]
[1734307819801,0.48147903,104600.0,104590.0,0.01927567]
[1734307820247,0.56750579,104600.0,104590.0,0.01927567]
[1734307820680,0.382465,104590.0,104570.0,0.0976298]
[1734307820896,0.48151803,104590.0,104570.0,0.10360308]
[1734307821128,0.67275303,104590.0,104570.0,0.10360308]
[1734307821347,0.48151803,104590.0,104570.0,0.10360308]
[1734307821579,0.377517,104580.0,104570.0,0.02090308]
[1734307821788,0.29029503,104580.0,104570.0,0.02090308]
[1734307821996,0.29029503,104580.0,104570.0,0.02146133]
[1734307823274,0.29029503,104580.0,104570.0,0.00653153]
[1734307824320,0.29029503,104580.0,104570.0,0.02605174]
[1734307824984,0.29029503,104580.0,104570.0,0.02007846]
[1734307825190,0.29029503,104580.0,104570.0,0.02605228]
[1734307826024,0.37632179,104580.0,104570.0,0.02605228]
[1734307826256,0.37632179,104580.0,104570.0,0.00055825]
[1734307827951,0.29029503,104580.0,104570.0,0.00055825]
[1734307828164,0.38996226,104590.0,104570.0,0.00055825]
[1734307828386,0.38996226,104590.0,104570.0,0.00653174]
[1734307828387,0.29149031,104580.0,104570.0,0.00653174]
[1734307828588,0.29029503,104580.0,104570.0,0.00055825]
[1734307829015,0.37632179,104580.0,104570.0,0.00055825]
[1734307829231,0.29029503,104580.0,104570.0,0.00055825]
[1734307831541,0.29029503,104580.0,104570.0,0.00073085]
[1734307831747,0.29906736,104580.0,104570.0,0.00073085]
[1734307832157,0.49032236,104580.0,104560.0,0.1652243]
[1734307832400,0.68212857,104580.0,104560.0,0.17119816]
[1734307832789,0.10837557,104580.0,104560.0,0.36247416]
[1734307832995,0.10837557,104580.0,104570.0,0.191259]
[1734307832996,0.00932154,104580.0,104570.0,0.191259]
[1734307833205,0.00932154,104580.0,104570.0,0.19723286]
[1734307834318,0.00932154,104580.0,104570.0,0.34723286]
[1734307834941,0.00712846,104580.0,104570.0,0.34723286]
[1734307835569,0.00712846,104580.0,104570.0,0.15597386]
[1734307835776,0.00928893,104580.0,104570.0,0.34723286]
[1734307837730,0.00928893,104580.0,104570.0,0.34723216]
[1734307837972,0.00928893,104580.0,104570.0,0.341259]
[1734307838190,0.00928893,104580.0,104570.0,0.34723216]
[1734307838617,0.00928893,104580.0,104570.0,0.15597316]
[1734307839271,0.00928893,104580.0,104570.0,0.34723216]
[1734307839472,0.00928893,104580.0,104570.0,0.15597316]
[1734307839886,0.20172516,104580.0,104570.0,0.15597316]
[1734307840785,0.20172516,104580.0,104570.0,0.15]
[1734307840993,0.20172516,104580.0,104570.0,0.15597357]
[1734307841422,0.01048416,104580.0,104570.0,0.15597357]
[1734307842938,0.00928893,104580.0,104570.0,0.34723257]
[1734307843163,0.00937533,104580.0,104570.0,0.34723257]
[1734307843384,0.00937533,104580.0,104570.0,0.42713257]
[1734307843815,0.00718257,104580.0,104570.0,0.42713257]
[1734307844506,0.00936489,104580.0,104570.0,0.42713257]
[1734307844923,0.20060589,104580.0,104570.0,0.15597357]
[1734307845367,0.29965992,104580.0,104570.0,0.15597357]
[1734307845822,0.29965992,104580.0,104570.0,0.00597357]
[1734307850019,0.38568668,104580.0,104570.0,0.00597357]
[1734307850248,0.46828668,104580.0,104570.0,0.00597357]
[1734307850464,0.47544141,104580.0,104570.0,0.00597357]
[1734307850687,0.56146817,104580.0,104570.0,0.00597357]
[1734307850918,0.191259,104570.0,104560.0,0.01966625]
[1734307851133,0.37753533,104570.0,104560.0,0.0256411]
[1734307851339,0.38505119,104570.0,104560.0,0.0256411]
[1734307853586,0.0087114,104570.0,104560.0,0.0256411]
[1734307853832,0.0087114,104570.0,104560.0,0.2928181]
[1734307854063,0.0087114,104570.0,104560.0,0.4428181]
[1734307855358,0.0087114,104570.0,104560.0,0.4905181]
[1734307855793,0.00866334,104570.0,104560.0,0.4905181]
[1734307856648,0.00866334,104570.0,104560.0,0.58957213]
[1734307857071,0.00866334,104570.0,104560.0,0.58359728]
[1734307857284,0.00866334,104570.0,104560.0,0.58957067]
[1734307857494,0.00866334,104570.0,104560.0,0.67510325]
[1734307858371,0.00866334,104570.0,104560.0,0.57604922]
[1734307858876,0.00866334,104570.0,104560.0,1.02073613]
[1734307859107,0.00866334,104570.0,104560.0,1.1918013]
[1734307859336,0.00866334,104570.0,104560.0,1.29085533]
[1734307859542,0.00866334,104570.0,104560.0,1.5046868]
[1734307859745,0.00866334,104570.0,104560.0,1.42038153]
[1734307859961,0.00866334,104570.0,104560.0,1.42038112]
[1734307861318,0.00866334,104570.0,104560.0,1.29179129]
[1734307861574,0.00866334,104570.0,104560.0,1.88741886]
[1734307862018,0.00866334,104570.0,104560.0,1.88532822]
[1734307862234,0.00063561,104580.0,104570.0,0.2295]
[1734307862463,0.00063561,104580.0,104570.0,0.91157764]
[1734307862682,0.00063561,104580.0,104570.0,1.05658401]
[1734307863108,0.00063561,104580.0,104570.0,1.22807813]
[1734307863327,0.00063561,104580.0,104570.0,1.31408138]
[1734307863533,0.00063561,104580.0,104570.0,1.14261077]
[1734307864189,0.00063561,104580.0,104570.0,1.31407204]
[1734307864823,0.00063561,104580.0,104570.0,1.14261077]
[1734307865278,0.00063561,104580.0,104570.0,1.31406275]
[1734307866777,0.00063561,104580.0,104570.0,1.22803599]
[1734307866986,0.00063561,104580.0,104570.0,1.22793132]
[1734307867656,8.63e-05,104610.0,104570.0,1.27793132]
[1734307867867,8.63e-05,104610.0,104600.0,0.341204]
[1734307868083,8.63e-05,104610.0,104600.0,0.34717606]
[1734307869800,0.05,104590.0,104580.0,0.00063561]
[1734307870006,0.55739821,104590.0,104580.0,0.00063561]
[1734307870241,0.63399513,104590.0,104580.0,0.00063561]
[1734307870455,0.68337546,104590.0,104580.0,0.00063561]
[1734307870686,0.364241,104580.0,104570.0,0.00072181]
[1734307870895,0.8012628,104580.0,104570.0,0.00072181]
[1734307871120,0.38068576,104570.0,104560.0,0.01438401]
[1734307871336,0.82894755,104570.0,104560.0,0.01438401]
[1734307871589,0.96881095,104570.0,104560.0,0.01438401]
[1734307871801,0.66948881,104570.0,104560.0,0.01438401]
[1734307872432,0.79769747,104570.0,104560.0,0.01438401]
[1734307872645,0.61948881,104570.0,104560.0,0.01438401]
[1734307873071,0.291277,104560.0,104550.0,0.00155]
[1734307873297,0.50410471,104560.0,104550.0,0.00155]
[1734307873509,0.40410471,104560.0,104550.0,0.00155]
[1734307873727,0.29507795,104560.0,104550.0,0.00155]
[1734307873928,0.38110471,104560.0,104550.0,0.00155]
[1734307876044,0.29507795,104560.0,104550.0,0.00155]
[1734307876398,0.38110471,104560.0,104550.0,0.00155]
[1734307876798,0.29507795,104560.0,104550.0,0.00155]
[1734307877298,0.00474692,104560.0,104550.0,0.00155]
[1734307877505,0.00474692,104560.0,104550.0,0.342846]
[1734307879209,0.19602392,104560.0,104550.0,0.15155]
[1734307879415,0.19602392,104560.0,104550.0,0.00155]
[1734307879416,0.28324618,104560.0,104550.0,0.00155]
[1734307879594,0.19602392,104560.0,104550.0,0.00155]
[1734307879801,0.00594243,104560.0,104550.0,0.0017226]
[1734307880183,0.00602873,104560.0,104550.0,0.0017226]
[1734307880380,0.00602873,104560.0,104550.0,0.3430186]
[1734307880381,0.00483322,104560.0,104550.0,0.3430186]
[1734307882500,0.00483322,104560.0,104550.0,0.44207263]
[1734307884314,0.00483322,104560.0,104550.0,0.46092796]
[1734307885396,0.00483322,104560.0,104550.0,0.36187393]
[1734307886233,0.00483322,104560.0,104550.0,0.46092796]
[1734307886825,0.00483322,104560.0,104550.0,0.54648562]
[1734307887465,0.00483322,104560.0,104550.0,0.46092796]
[1734307889567,0.00483322,104560.0,104550.0,1.01114887]
[1734307889775,0.00483322,104560.0,104550.0,1.62633004]
[1734307889981,8.63e-05,104560.0,104550.0,1.49799355]
[1734307890399,8.63e-05,104560.0,104550.0,1.58402031]
[1734307890837,8.63e-05,104560.0,104550.0,1.49799355]
[1734307891050,0.00054921,104580.0,104560.0,0.05474692]
[1734307891274,0.00054921,104580.0,104570.0,0.44031303]
[1734307893244,0.00054921,104580.0,104570.0,0.51871303]
[1734307893477,0.00054921,104580.0,104570.0,0.60473979]
[1734307893888,0.00054921,104580.0,104570.0,0.61240721]
[1734307894958,0.0052839,104580.0,104570.0,0.61240721]
[1734307895175,0.00054921,104580.0,104570.0,0.61240721]
[1734307895396,0.0052839,104580.0,104570.0,0.66240721]
[1734307895606,0.00054921,104580.0,104570.0,0.66240721]
[1734307895805,0.0052839,104580.0,104570.0,0.66240721]
[1734307895915,0.00054921,104580.0,104570.0,0.70860721]
[1734307896123,0.0052839,104580.0,104570.0,0.70860721]
[1734307896342,0.00054921,104580.0,104570.0,0.70860721]
[1734307896548,0.0052839,104580.0,104570.0,0.70860721]
[1734307896753,0.00054921,104580.0,104570.0,0.70860721]
[1734307897245,0.0052839,104580.0,104570.0,0.70860721]
[1734307897465,0.0052839,104580.0,104570.0,0.62258045]
[1734307897681,0.0052839,104580.0,104570.0,0.44798045]
[1734307897901,0.0052839,104580.0,104570.0,0.341259]
[1734307900018,0.19244628,104580.0,104560.0,0.19600992]
[1734307900235,0.38370028,104580.0,104560.0,0.19600992]
[1734307900431,0.61658579,104580.0,104560.0,0.00474692]
[1734307900656,0.19245429,104570.0,104560.0,0.00474692]
[1734307900845,0.191259,104570.0,104560.0,0.00474692]
[1734307901885,0.191259,104570.0,104560.0,0.15474692]
[1734307903021,0.191259,104570.0,104560.0,0.17416402]
[1734307903674,8.63e-05,104570.0,104560.0,0.17416402]
[1734307904096,0.1913453,104570.0,104560.0,0.17416402]
[1734307904307,0.1913453,104570.0,104560.0,0.1694171]
[1734307904966,8.63e-05,104570.0,104560.0,0.3606941]